[Event "Early-Titled-Tuesday-Blitz-January-23-2024"]
[Site "Chess.com"]
[Date "2024.01.23"]
[Round "5"]
[White "ama18"]
[Black "Zurability"]
[Result "0-1"]
[WhiteElo "2519"]
[BlackElo "2744"]
[TimeControl "180+1"]
[EndTime "8:58:15 PST"]
[Termination "Zurability won on time"]

1. Nf3 {[%clk 0:02:56.8]} 1... d5 {[%clk 0:02:56.3]} 2. g3 {[%clk 0:02:56.5]}
2... Nf6 {[%clk 0:02:54.2]} 3. Bg2 {[%clk 0:02:56.6]} 3... c6 {[%clk 0:02:55]}
4. O-O {[%clk 0:02:56.9]} 4... Bf5 {[%clk 0:02:53.7]} 5. b3 {[%clk 0:02:57.4]}
5... Nbd7 {[%clk 0:02:53.5]} 6. Bb2 {[%clk 0:02:58]} 6... h6 {[%clk 0:02:54.2]}
7. d4 {[%clk 0:02:58.4]} 7... e6 {[%clk 0:02:54.7]} 8. c4 {[%clk 0:02:59]} 8...
Bd6 {[%clk 0:02:54.2]} 9. Nc3 {[%clk 0:02:59.4]} 9... O-O {[%clk 0:02:54.4]} 10.
Re1 {[%clk 0:03:00]} 10... Qe7 {[%clk 0:02:52.9]} 11. Nd2 {[%clk 0:03:00.2]}
11... Ba3 {[%clk 0:02:40.4]} 12. Qc1 {[%clk 0:02:46.4]} 12... Bxb2 {[%clk
0:02:39.4]} 13. Qxb2 {[%clk 0:02:47.3]} 13... Rfd8 {[%clk 0:02:37.3]} 14. Rad1
{[%clk 0:02:42.7]} 14... Rac8 {[%clk 0:02:30.3]} 15. e4 {[%clk 0:02:42.3]} 15...
dxe4 {[%clk 0:02:30.7]} 16. Ndxe4 {[%clk 0:02:43.2]} 16... Nxe4 {[%clk
0:02:31.2]} 17. Nxe4 {[%clk 0:02:43.9]} 17... Bxe4 {[%clk 0:02:27.9]} 18. Bxe4
{[%clk 0:02:44.8]} 18... Nf6 {[%clk 0:02:27.9]} 19. Bf3 {[%clk 0:02:43.8]} 19...
Qb4 {[%clk 0:02:28.1]} 20. Kg2 {[%clk 0:02:41.6]} 20... Rd7 {[%clk 0:02:28.5]}
21. a3 {[%clk 0:02:41.1]} 21... Qb6 {[%clk 0:02:27.1]} 22. Qc3 {[%clk
0:02:41.2]} 22... Rcd8 {[%clk 0:02:27.2]} 23. c5 {[%clk 0:02:37.9]} 23... Qc7
{[%clk 0:02:22.8]} 24. b4 {[%clk 0:02:23.4]} 24... Nd5 {[%clk 0:02:11.8]} 25.
Qc4 {[%clk 0:02:20.6]} 25... Re8 {[%clk 0:02:04.7]} 26. a4 {[%clk 0:02:10.8]}
26... Qd8 {[%clk 0:01:41.6]} 27. b5 {[%clk 0:02:06.2]} 27... Qf6 {[%clk
0:01:41.6]} 28. bxc6 {[%clk 0:01:54.9]} 28... bxc6 {[%clk 0:01:42.5]} 29. Qa6
{[%clk 0:01:52.1]} 29... Nb4 {[%clk 0:01:24.4]} 30. Qa5 {[%clk 0:01:35.3]} 30...
Rb8 {[%clk 0:01:22.2]} 31. Rb1 {[%clk 0:00:52.2]} 31... Qd8 {[%clk 0:00:45.8]}
32. Qxd8+ {[%clk 0:00:48.9]} 32... Rdxd8 {[%clk 0:00:45.2]} 33. Red1 {[%clk
0:00:38.9]} 33... a5 {[%clk 0:00:45.1]} 34. Kf1 {[%clk 0:00:37]} 34... Kf8
{[%clk 0:00:30.8]} 35. Ke2 {[%clk 0:00:36.4]} 35... Ke7 {[%clk 0:00:30.6]} 36.
Rd2 {[%clk 0:00:22.6]} 36... Kd7 {[%clk 0:00:30.5]} 37. Rdb2 {[%clk 0:00:20.4]}
37... Kc7 {[%clk 0:00:30.6]} 38. Rd2 {[%clk 0:00:19.2]} 38... Rd7 {[%clk
0:00:19.8]} 39. Rbb2 {[%clk 0:00:09]} 39... Rbd8 {[%clk 0:00:11.2]} 40. Ke3
{[%clk 0:00:09.2]} 40... f6 {[%clk 0:00:08.4]} 41. Be4 {[%clk 0:00:09.1]} 41...
Rb8 {[%clk 0:00:04.7]} 42. h4 {[%clk 0:00:07.1]} 42... Rdd8 {[%clk 0:00:04.9]}
43. g4 {[%clk 0:00:06.7]} 43... Na6 {[%clk 0:00:04.5]} 44. f4 {[%clk 0:00:04.6]}
44... Rb4 {[%clk 0:00:04.2]} 45. Rxb4 {[%clk 0:00:04.5]} 45... axb4 {[%clk
0:00:04.1]} 46. Rb2 {[%clk 0:00:04.4]} 46... Rb8 {[%clk 0:00:03.1]} 47. Bd3
{[%clk 0:00:04.7]} 47... Ra8 {[%clk 0:00:02.5]} 48. Bxa6 {[%clk 0:00:04.2]}
48... Rxa6 {[%clk 0:00:03.4]} 49. Rxb4 {[%clk 0:00:04.8]} 49... Ra7 {[%clk
0:00:03.8]} 50. Kd3 {[%clk 0:00:04.8]} 50... Ra8 {[%clk 0:00:04.3]} 51. Kc3
{[%clk 0:00:05.1]} 51... Rd8 {[%clk 0:00:04.8]} 52. a5 {[%clk 0:00:01.9]} 52...
Ra8 {[%clk 0:00:05.2]} 53. Ra4 {[%clk 0:00:02.3]} 53... Kb7 {[%clk 0:00:05.8]}
54. Kb4 {[%clk 0:00:02.6]} 54... Ka6 {[%clk 0:00:05.7]} 55. Ra2 {[%clk 0:00:03]}
55... Rb8+ {[%clk 0:00:06]} 56. Kc4 {[%clk 0:00:03.6]} 56... Rb1 {[%clk
0:00:03.6]} 57. Re2 {[%clk 0:00:03.7]} 57... Rc1+ {[%clk 0:00:03]} 58. Kd3
{[%clk 0:00:04.3]} 58... Rd1+ {[%clk 0:00:03.6]} 59. Kc3 {[%clk 0:00:04.8]}
59... Rc1+ {[%clk 0:00:02.7]} 60. Kd2 {[%clk 0:00:05.3]} 60... Rf1 {[%clk
0:00:03.3]} 61. Ke3 {[%clk 0:00:02.9]} 61... Kxa5 {[%clk 0:00:03.3]} 62. Rb2
{[%clk 0:00:02.9]} 62... Rg1 {[%clk 0:00:02.4]} 63. Kf3 {[%clk 0:00:02.8]} 63...
Rf1+ {[%clk 0:00:02.9]} 64. Ke3 {[%clk 0:00:03.1]} 64... Rh1 {[%clk 0:00:02.9]}
65. Rb6 {[%clk 0:00:03.2]} 65... Rxh4 {[%clk 0:00:03.1]} 66. Rxc6 {[%clk
0:00:03.7]} 66... Rxg4 {[%clk 0:00:03.8]} 67. Rxe6 {[%clk 0:00:03.9]} 67... Kb5
{[%clk 0:00:04.3]} 68. Re7 {[%clk 0:00:03.8]} 68... Kc6 {[%clk 0:00:04.2]} 69.
Ke4 {[%clk 0:00:03.4]} 69... Rg1 {[%clk 0:00:04.3]} 70. Re6+ {[%clk 0:00:03.6]}
70... Kd7 {[%clk 0:00:04.4]} 71. Ra6 {[%clk 0:00:04]} 71... h5 {[%clk
0:00:03.7]} 72. d5 {[%clk 0:00:03.1]} 72... h4 {[%clk 0:00:04.1]} 73. Ra7+
{[%clk 0:00:03]} 73... Kc8 {[%clk 0:00:04.4]} 74. d6 {[%clk 0:00:03.5]} 74... h3
{[%clk 0:00:04.9]} 75. Ra2 {[%clk 0:00:03]} 75... Rg2 {[%clk 0:00:04.4]} 76. Ra1
{[%clk 0:00:03.2]} 76... h2 {[%clk 0:00:05]} 77. Rh1 {[%clk 0:00:03]} 77... Rd2
{[%clk 0:00:05.1]} 78. Ke3 {[%clk 0:00:01.2]} 78... Rc2 {[%clk 0:00:05.1]} 79.
Kd4 {[%clk 0:00:01.4]} 79... Kd7 {[%clk 0:00:05.6]} 80. Kd5 {[%clk 0:00:01.9]}
80... Rd2+ {[%clk 0:00:05.5]} 81. Kc4 {[%clk 0:00:01.8]} 81... Kc6 {[%clk
0:00:05.7]} 82. f5 {[%clk 0:00:02.4]} 82... Rf2 {[%clk 0:00:05.4]} 83. Kd4
{[%clk 0:00:02.6]} 83... Rxf5 {[%clk 0:00:05.7]} 84. Rxh2 {[%clk 0:00:03.2]}
84... Rd5+ {[%clk 0:00:06.4]} 85. Ke4 {[%clk 0:00:03]} 85... Rxc5 {[%clk
0:00:06.9]} 86. Rh7 {[%clk 0:00:03.6]} 86... Re5+ {[%clk 0:00:07.1]} 87. Kf4
{[%clk 0:00:03.6]} 87... Rg5 {[%clk 0:00:07.6]} 88. d7 {[%clk 0:00:03.2]} 88...
Kxd7 {[%clk 0:00:07.7]} 89. Rh8 {[%clk 0:00:03.8]} 89... Ke6 {[%clk 0:00:08.1]}
90. Re8+ {[%clk 0:00:04]} 90... Kf7 {[%clk 0:00:08.6]} 91. Ra8 {[%clk
0:00:04.8]} 91... Re5 {[%clk 0:00:08.9]} 92. Ra7+ {[%clk 0:00:05.1]} 92... Re7
{[%clk 0:00:09.5]} 93. Ra1 {[%clk 0:00:05.7]} 93... g5+ {[%clk 0:00:10]} 94. Kf3
{[%clk 0:00:05.8]} 94... Kg6 {[%clk 0:00:10.1]} 95. Ra5 {[%clk 0:00:05.8]} 95...
Re5 {[%clk 0:00:10.1]} 96. Ra8 {[%clk 0:00:05.5]} 96... Rf5+ {[%clk 0:00:10.6]}
97. Kg3 {[%clk 0:00:05.3]} 97... Rf4 {[%clk 0:00:11.1]} 98. Ra5 {[%clk
0:00:05.4]} 98... Rb4 {[%clk 0:00:10.7]} 99. Rc5 {[%clk 0:00:05.4]} 99... Rb3+
{[%clk 0:00:10.3]} 100. Kg2 {[%clk 0:00:03.5]} 100... f5 {[%clk 0:00:10]} 101.
Rc8 {[%clk 0:00:03.1]} 101... Kh5 {[%clk 0:00:10]} 102. Rc4 {[%clk 0:00:02.9]}
102... f4 {[%clk 0:00:10.1]} 103. Rc5 {[%clk 0:00:02.8]} 103... Kg4 {[%clk
0:00:10.2]} 104. Kf2 {[%clk 0:00:03.6]} 104... Rb2+ {[%clk 0:00:10.3]} 105. Kg1
{[%clk 0:00:04.1]} 105... f3 {[%clk 0:00:09.2]} 106. Rd5 {[%clk 0:00:03.3]}
106... Kf4 {[%clk 0:00:09.5]} 107. Ra5 {[%clk 0:00:03]} 107... g4 {[%clk
0:00:10]} 108. Rc5 {[%clk 0:00:02.3]} 108... Kg3 {[%clk 0:00:10.3]} 109. Rc1
{[%clk 0:00:02.4]} 109... Rg2+ {[%clk 0:00:10.5]} 110. Kh1 {[%clk 0:00:02.7]}
110... Rh2+ {[%clk 0:00:11]} 111. Kg1 {[%clk 0:00:02.8]} 111... f2+ {[%clk
0:00:11.7]} 0-1

[Event "Early-Titled-Tuesday-Blitz-January-23-2024"]
[Site "Chess.com"]
[Date "2024.01.23"]
[Round "5"]
[White "Sanan_Sjugirov"]
[Black "LevonAronian"]
[Result "1-0"]
[WhiteElo "3017"]
[BlackElo "3109"]
[TimeControl "180+1"]
[EndTime "8:58:28 PST"]
[Termination "Sanan_Sjugirov won by resignation"]

1. Nf3 {[%clk 0:03:00.9]} 1... d5 {[%clk 0:02:55.8]} 2. g3 {[%clk 0:03:01]} 2...
g6 {[%clk 0:02:52.7]} 3. Bg2 {[%clk 0:03:00.6]} 3... Bg7 {[%clk 0:02:53.2]} 4.
O-O {[%clk 0:03:01.3]} 4... e5 {[%clk 0:02:53.3]} 5. d3 {[%clk 0:03:02]} 5...
Ne7 {[%clk 0:02:52.2]} 6. c4 {[%clk 0:03:02]} 6... O-O {[%clk 0:02:45.9]} 7.
cxd5 {[%clk 0:03:00.6]} 7... Nxd5 {[%clk 0:02:45.9]} 8. Bg5 {[%clk 0:03:00.2]}
8... Ne7 {[%clk 0:02:44.4]} 9. Nc3 {[%clk 0:02:56.9]} 9... h6 {[%clk 0:02:42.8]}
10. Bd2 {[%clk 0:02:56.7]} 10... Nbc6 {[%clk 0:02:42.3]} 11. Rb1 {[%clk
0:02:39.9]} 11... a5 {[%clk 0:02:34.9]} 12. a3 {[%clk 0:02:37.9]} 12... Nd4
{[%clk 0:02:33.1]} 13. b4 {[%clk 0:02:28.4]} 13... axb4 {[%clk 0:02:32.3]} 14.
axb4 {[%clk 0:02:29.3]} 14... Be6 {[%clk 0:02:23.5]} 15. b5 {[%clk 0:01:34.1]}
15... b6 {[%clk 0:02:22.2]} 16. Re1 {[%clk 0:01:00]} 16... Kh7 {[%clk 0:02:11]}
17. h4 {[%clk 0:00:39.3]} 17... Ra7 {[%clk 0:01:56]} 18. Qc1 {[%clk 0:00:24.2]}
18... Qd7 {[%clk 0:01:46.7]} 19. h5 {[%clk 0:00:17.6]} 19... g5 {[%clk
0:01:43.2]} 20. Ne4 {[%clk 0:00:16]} 20... f5 {[%clk 0:01:25.1]} 21. Nexg5+
{[%clk 0:00:16.1]} 21... hxg5 {[%clk 0:01:25.4]} 22. Nxg5+ {[%clk 0:00:17]}
22... Kh8 {[%clk 0:01:25.8]} 23. Bc3 {[%clk 0:00:12.3]} 23... Bd5 {[%clk
0:01:15.2]} 24. e3 {[%clk 0:00:07.9]} 24... Bxg2 {[%clk 0:01:12.6]} 25. Kxg2
{[%clk 0:00:08.8]} 25... Nxb5 {[%clk 0:01:02.9]} 26. h6 {[%clk 0:00:05.5]} 26...
Bf6 {[%clk 0:01:01.5]} 27. Nf3 {[%clk 0:00:04.2]} 27... Nxc3 {[%clk 0:00:59.2]}
28. Qxc3 {[%clk 0:00:05.1]} 28... Ra5 {[%clk 0:00:51.2]} 29. Qc4 {[%clk
0:00:04.7]} 29... Rc5 {[%clk 0:00:43.4]} 30. Qa2 {[%clk 0:00:04.6]} 30... Qxd3
{[%clk 0:00:41]} 31. Rbd1 {[%clk 0:00:05.3]} 31... Qe4 {[%clk 0:00:38.7]} 32.
Qe6 {[%clk 0:00:05.5]} 32... Rc6 {[%clk 0:00:35.4]} 33. Qd7 {[%clk 0:00:05.6]}
33... Qc4 {[%clk 0:00:23]} 34. Rc1 {[%clk 0:00:03.7]} 34... Qe6 {[%clk
0:00:22.7]} 35. Qd2 {[%clk 0:00:02.9]} 35... Rxc1 {[%clk 0:00:21.4]} 36. Rxc1
{[%clk 0:00:03.8]} 36... c5 {[%clk 0:00:21.9]} 37. Rd1 {[%clk 0:00:03.1]} 37...
e4 {[%clk 0:00:21.9]} 38. Ng1 {[%clk 0:00:03.2]} 38... Ng8 {[%clk 0:00:21.1]}
39. Nh3 {[%clk 0:00:03.4]} 39... Rd8 {[%clk 0:00:21.1]} 40. Qe2 {[%clk
0:00:03.3]} 40... Rxd1 {[%clk 0:00:20.8]} 41. Qxd1 {[%clk 0:00:04.2]} 41... Nxh6
{[%clk 0:00:20.8]} 42. Nf4 {[%clk 0:00:04.3]} 42... Qf7 {[%clk 0:00:20.9]} 43.
Qd6 {[%clk 0:00:04.3]} 43... c4 {[%clk 0:00:15.1]} 44. Qxb6 {[%clk 0:00:04.3]}
44... c3 {[%clk 0:00:15.6]} 45. Qc6 {[%clk 0:00:05]} 45... Kh7 {[%clk
0:00:14.1]} 46. Nd5 {[%clk 0:00:05.1]} 46... Bg7 {[%clk 0:00:14.5]} 47. Nxc3
{[%clk 0:00:04.7]} 47... Bxc3 {[%clk 0:00:14.4]} 48. Qxc3 {[%clk 0:00:05.6]}
48... Ng4 {[%clk 0:00:14.7]} 49. Qc5 {[%clk 0:00:05.7]} 49... Kg6 {[%clk
0:00:13.7]} 50. Qd6+ {[%clk 0:00:05.9]} 50... Qf6 {[%clk 0:00:12.9]} 51. Qb8
{[%clk 0:00:05.3]} 51... Kg7 {[%clk 0:00:12.1]} 52. Qc7+ {[%clk 0:00:05.4]}
52... Qf7 {[%clk 0:00:12.3]} 53. Qc3+ {[%clk 0:00:05]} 53... Kh7 {[%clk
0:00:12.2]} 54. Qc5 {[%clk 0:00:03.9]} 54... Nh6 {[%clk 0:00:11.1]} 55. Qe5
{[%clk 0:00:04]} 55... Qh5 {[%clk 0:00:10.4]} 56. Qe7+ {[%clk 0:00:03.9]} 56...
Nf7 {[%clk 0:00:10.8]} 57. Qd7 {[%clk 0:00:03.1]} 57... Kg7 {[%clk 0:00:10.4]}
58. Qc7 {[%clk 0:00:02.9]} 58... Qf3+ {[%clk 0:00:10]} 59. Kg1 {[%clk
0:00:03.2]} 59... Qd1+ {[%clk 0:00:09.5]} 60. Kg2 {[%clk 0:00:03.7]} 60... Qd6
{[%clk 0:00:10]} 61. Qb7 {[%clk 0:00:03.5]} 61... Kg6 {[%clk 0:00:10.3]} 62. Qa7
{[%clk 0:00:03.1]} 62... Ng5 {[%clk 0:00:08.5]} 63. Qa8 {[%clk 0:00:03.6]} 63...
Qf6 {[%clk 0:00:08.2]} 64. Qg8+ {[%clk 0:00:03.5]} 64... Kh6 {[%clk 0:00:08.5]}
65. Qe8 {[%clk 0:00:02.4]} 65... Nf3 {[%clk 0:00:08.4]} 66. Qc8 {[%clk
0:00:01.4]} 66... Ne1+ {[%clk 0:00:08.6]} 67. Kg1 {[%clk 0:00:01.3]} 67... Nd3
{[%clk 0:00:09.1]} 68. Kg2 {[%clk 0:00:01.8]} 68... Ne5 {[%clk 0:00:05.7]} 69.
Kg1 {[%clk 0:00:02.4]} 69... Ng4 {[%clk 0:00:05.7]} 70. Kg2 {[%clk 0:00:02.8]}
70... Kg5 {[%clk 0:00:05.4]} 71. Qg8+ {[%clk 0:00:02.9]} 71... Kh6 {[%clk
0:00:05.6]} 72. Qc8 {[%clk 0:00:03]} 72... Ne5 {[%clk 0:00:05.8]} 73. Qg8 {[%clk
0:00:02.9]} 73... Ng6 {[%clk 0:00:05.3]} 74. Qc8 {[%clk 0:00:02.8]} 74... Kg5
{[%clk 0:00:05.8]} 75. Qc2 {[%clk 0:00:01.6]} 75... Qe6 {[%clk 0:00:04.4]} 76.
Qc7 {[%clk 0:00:01.4]} 76... Ne7 {[%clk 0:00:02.6]} 77. Qf4+ {[%clk 0:00:01.5]}
77... Kg6 {[%clk 0:00:03.2]} 78. Qc7 {[%clk 0:00:02.4]} 78... Kf6 {[%clk
0:00:03.2]} 79. Qd8 {[%clk 0:00:02.8]} 79... Kf7 {[%clk 0:00:02.9]} 80. Qc7
{[%clk 0:00:03.1]} 80... Qd5 {[%clk 0:00:02.5]} 81. Qf4 {[%clk 0:00:03]} 81...
Ke6 {[%clk 0:00:02.7]} 82. Qh6+ {[%clk 0:00:03.3]} 82... Kd7 {[%clk 0:00:03.1]}
83. Qg7 {[%clk 0:00:03.7]} 83... Qe6 {[%clk 0:00:03.6]} 84. Qg5 {[%clk
0:00:03.9]} 84... Kc6 {[%clk 0:00:02.3]} 85. Qg7 {[%clk 0:00:04.2]} 85... Nd5
{[%clk 0:00:01.8]} 86. Qd4 {[%clk 0:00:04.1]} 86... Kb5 {[%clk 0:00:02.3]} 87.
Qb2+ {[%clk 0:00:04.3]} 87... Nb4 {[%clk 0:00:02.6]} 88. Qe2+ {[%clk 0:00:04.5]}
88... Nd3 {[%clk 0:00:02.7]} 89. Qc2 {[%clk 0:00:05]} 89... Qc4 {[%clk
0:00:02.7]} 90. Qd2 {[%clk 0:00:04.9]} 90... Qb4 {[%clk 0:00:02.5]} 91. Qa2
{[%clk 0:00:05.1]} 91... Ne1+ {[%clk 0:00:02.3]} 92. Kf1 {[%clk 0:00:04.7]}
92... Nd3 {[%clk 0:00:02.1]} 93. Kg2 {[%clk 0:00:04.9]} 93... Qb2 {[%clk
0:00:01.4]} 94. Qd5+ {[%clk 0:00:05.1]} 94... Kb4 {[%clk 0:00:02]} 95. Qxf5
{[%clk 0:00:05.9]} 95... Nc5 {[%clk 0:00:02.6]} 96. Qf8 {[%clk 0:00:05.5]} 96...
Kc4 {[%clk 0:00:02.9]} 97. Qf7+ {[%clk 0:00:06]} 97... Kd3 {[%clk 0:00:03.2]}
98. Qd5+ {[%clk 0:00:06.3]} 98... Ke2 {[%clk 0:00:03.6]} 99. Qxc5 {[%clk
0:00:06.2]} 99... Ke1 {[%clk 0:00:04.1]} 100. Qa5+ {[%clk 0:00:06.2]} 100... Ke2
{[%clk 0:00:03.8]} 101. Qa4 {[%clk 0:00:05.9]} 101... Ke1 {[%clk 0:00:03.1]}
102. Qa5+ {[%clk 0:00:05.4]} 102... Ke2 {[%clk 0:00:03.3]} 103. Qf5 {[%clk
0:00:06.1]} 103... Ke1 {[%clk 0:00:03.8]} 104. g4 {[%clk 0:00:06.6]} 104... Qe2
{[%clk 0:00:03.8]} 105. g5 {[%clk 0:00:06.8]} 105... Qf1+ {[%clk 0:00:03.6]}
106. Kg3 {[%clk 0:00:07.3]} 106... Qg1+ {[%clk 0:00:03.8]} 107. Kf4 {[%clk
0:00:07.4]} 107... Qxf2+ {[%clk 0:00:02.6]} 108. Kxe4 {[%clk 0:00:08]} 108...
Qc2+ {[%clk 0:00:03.3]} 109. Kf4 {[%clk 0:00:08.5]} 109... Qf2+ {[%clk 0:00:03]}
110. Kg4 {[%clk 0:00:09.2]} 110... Qe2+ {[%clk 0:00:02.2]} 111. Qf3 {[%clk
0:00:07.7]} 111... Qc4+ {[%clk 0:00:02.5]} 112. Qf4 {[%clk 0:00:08.1]} 112...
Qe6+ {[%clk 0:00:02.6]} 113. Kg3 {[%clk 0:00:08.5]} 113... Qg6 {[%clk
0:00:02.1]} 114. e4 {[%clk 0:00:08.6]} 114... Qb6 {[%clk 0:00:01.4]} 115. e5
{[%clk 0:00:08.2]} 115... Qg1+ {[%clk 0:00:01.3]} 116. Kh4 {[%clk 0:00:08.8]}
116... Qh1+ {[%clk 0:00:01.8]} 117. Kg4 {[%clk 0:00:09.3]} 117... Qg2+ {[%clk
0:00:02.3]} 118. Qg3+ {[%clk 0:00:09.7]} 1-0